bitfinex/quotes_ETHUSD_20251218
["timestamp","ask_amount","ask_price","bid_price","bid_amount"]
[1766076234120,2.10988023,2953.2,2952.6,0.33890056]
[1766076234708,1.1015,2953.1,2952.5,0.001]
[1766076234887,1.1015,2953.1,2952.5,5.18145742]
[1766076235206,0.544,2953.2,2952.5,5.18145742]
[1766076235508,0.544,2953.2,2952.6,1.7935]
[1766076236109,0.5432,2953.2,2952.6,1.7935]
[1766076236317,0.5432,2953.2,2952.6,5.46811762]
[1766076237018,0.5432,2953.2,2952.6,2.08128]
[1766076237823,1.1015,2952.9,2952.5,0.001]
[1766076238035,0.5432,2953.2,2952.5,0.001]
[1766076238036,1.1015,2953.1,2952.5,0.001]
[1766076238814,2.3283,2953.2,2952.5,0.001]
[1766076238815,1.7851,2953.0,2952.5,0.001]
[1766076239006,1.7851,2952.2,2951.8,0.001]
[1766076239206,1.7851,2952.2,2951.4,0.001]
[1766076239207,2.24948023,2952.0,2951.4,0.001]
[1766076239426,1.1015,2951.9,2951.4,0.001]
[1766076239776,0.544,2952.0,2951.4,0.001]
[1766076239926,0.544,2952.0,2951.5,0.51837524]
[1766076240096,0.544,2952.0,2951.6,1.7935]
[1766076241107,0.544,2952.0,2951.5,0.51837524]
[1766076241637,0.544,2952.1,2951.5,0.51837524]
[1766076242634,0.544,2952.1,2951.4,1.9008]
[1766076243201,1.0942,2951.9,2951.4,0.001]
[1766076243402,1.55858023,2951.9,2951.4,0.001]
[1766076243606,10.56542471,2952.8,2951.7,1.8998]
[1766076243607,1.0942,2952.8,2951.7,1.8998]
[1766076243845,1.0942,2952.8,2952.1,1.8998]
[1766076244035,0.002,2953.2,2952.5,1.8998]
[1766076244213,0.002,2953.2,2952.7,1.8998]
[1766076244410,1.0962,2953.6,2952.7,3.0254]
[1766076244609,1.0942,2953.4,2952.6,0.544]
[1766076244945,1.55858023,2953.4,2952.7,1.8998]
[1766076245138,0.46638023,2953.6,2952.8,1.8998]
[1766076245332,1.7975,2953.5,2952.7,0.35694]
[1766076245532,2.26188023,2953.5,2952.7,1.8998]
[1766076245734,1.55858023,2953.4,2952.7,1.8998]
[1766076246413,1.0942,2953.4,2952.7,1.8998]
[1766076247218,0.002,2953.6,2952.7,1.8998]
[1766076247542,1.0962,2953.6,2952.8,1.8998]
[1766076247855,1.55858023,2953.5,2952.8,2.54101923]
[1766076248027,1.55858023,2953.5,2952.8,1.8998]
[1766076249445,1.55858023,2953.5,2952.8,3.38656958]
[1766076249617,0.46438023,2953.5,2952.9,1.8998]
[1766076249823,0.546,2953.6,2952.9,1.8998]
[1766076250127,1.6402,2953.6,2952.7,3.38672048]
[1766076250343,1.6402,2953.6,2952.8,5.62502989]
[1766076250548,1.0962,2953.6,2952.8,3.72522989]
[1766076250747,1.6402,2953.6,2952.9,1.8998]
[1766076251459,1.0962,2954.4,2953.0,0.544]
[1766076251747,0.544,2954.3,2953.6,1.8998]
[1766076251947,1.0962,2954.4,2953.6,2.20234]
[1766076251948,1.56058023,2954.4,2953.6,2.20234]
[1766076252151,2.10458023,2954.4,2953.6,2.20234]
[1766076252351,1.6402,2954.4,2953.6,2.20234]
[1766076252521,5.08299451,2954.4,2953.6,2.20234]
[1766076252722,0.46438023,2954.3,2953.6,2.20234]
[1766076253444,1.1522,2954.3,2953.6,2.20234]
[1766076253834,1.1522,2954.3,2953.7,0.332794]
[1766076254148,1.01038023,2954.4,2953.9,1.8612]
[1766076254149,0.002,2954.4,2953.9,1.8612]
[1766076256326,0.002,2954.4,2953.9,1.1003]
[1766076256531,0.002,2954.4,2954.0,1.8612]
[1766076256739,0.002,2954.4,2954.0,2.15735]
[1766076256945,0.002,2954.4,2954.2,1.8612]
[1766076257253,0.002,2954.7,2954.2,2.9615]
[1766076257553,0.002,2954.7,2954.3,1.8612]
[1766076257757,0.002,2954.7,2954.4,1.8612]
[1766076257927,0.002,2954.7,2954.4,2.49584821]
[1766076258329,0.002,2954.7,2954.0,1.39645]
[1766076258529,0.002,2954.7,2954.1,1.8612]
[1766076258737,1.1522,2954.5,2954.0,0.29615]
[1766076259056,0.46438023,2954.9,2954.0,0.29615]
[1766076259057,0.002,2955.0,2954.3,3.38489025]
[1766076259232,0.002,2955.0,2954.5,1.8612]
[1766076259433,0.002,2955.0,2954.6,0.29615]
[1766076260142,0.002,2955.0,2954.6,1.8612]
[1766076260533,1.6982,2955.3,2954.6,1.8612]
[1766076260534,2.16258023,2955.3,2954.6,1.8612]
[1766076260846,0.0012,2955.1,2954.6,1.8612]
[1766076261050,1.1534,2955.1,2954.2,3.5055]
[1766076261250,1.1522,2955.0,2954.2,3.5055]
[1766076261440,1.1522,2955.0,2954.3,0.6890573]
[1766076261857,1.1522,2955.0,2954.3,2.5502573]
[1766076262529,1.1522,2955.0,2954.3,5.93512594]
[1766076262742,0.0012,2955.1,2954.3,4.07392594]
[1766076262940,1.1534,2955.1,2954.4,1.8612]
[1766076263144,3.46628023,2955.1,2954.4,2.22625573]
[1766076263539,0.0012,2955.1,2954.5,1.1003]
[1766076263732,0.0012,2955.1,2954.6,1.8612]
[1766076264834,0.0012,2955.1,2954.7,1.8612]
[1766076265030,0.002,2955.0,2954.7,1.8612]
[1766076265370,0.002,2955.0,2954.8,0.29615]
[1766076265542,0.002,2955.0,2954.5,1.8612]
[1766076265943,0.002,2955.0,2954.4,0.36505573]
[1766076266152,1.1542,2955.0,2954.4,0.36505573]
[1766076266553,3.0007,2954.9,2954.2,1.8612]
[1766076266874,1.1522,2954.9,2954.2,5.2462009]
[1766076267073,1.1522,2954.9,2954.2,1.8612]
[1766076267452,1.1522,2954.7,2953.8,2.9615]
[1766076267658,3.0007,2954.7,2953.8,2.9615]
[1766076267862,3.0007,2954.7,2953.9,2.55030598]
[1766076268068,3.0007,2954.7,2953.9,4.07445069]
[1766076268249,3.0007,2954.7,2954.0,1.8612]
[1766076268250,1.1522,2954.7,2954.0,1.8612]
[1766076268451,1.1522,2954.7,2954.0,2.9615]
[1766076268783,1.1522,2954.6,2953.9,0.68910598]
[1766076268949,0.544,2954.8,2954.0,2.26864924]
[1766076269446,1.6962,2954.8,2954.0,2.26864924]
[1766076269672,1.61658023,2954.7,2954.0,2.26864924]
[1766076271684,0.002,2955.0,2954.1,1.8612]
[1766076271858,2.16058023,2954.9,2954.2,1.8612]
[1766076272569,0.002,2955.0,2954.4,1.8612]
[1766076272882,0.002,2955.6,2955.0,1.8612]
[1766076273084,0.002,2955.6,2955.2,1.8612]
[1766076274160,0.002,2955.6,2954.9,3.38415121]
[1766076274364,0.002,2955.6,2955.1,1.8612]
[1766076275280,0.002,2955.6,2954.7,0.405504]
[1766076275281,1.1522,2955.5,2954.7,0.405504]
[1766076275483,1.1522,2955.5,2954.8,0.7706704]
[1766076275688,1.1522,2955.5,2954.9,1.8612]
[1766076276264,1.8505,2955.6,2954.8,0.2266704]
[1766076276265,3.0007,2955.4,2954.8,0.2266704]
[1766076276474,1.1522,2955.4,2954.8,0.2266704]
[1766076276980,1.1522,2955.4,2954.9,0.41550484]
[1766076277179,1.1522,2955.5,2954.9,0.41550484]
[1766076277489,1.1522,2955.4,2954.9,0.41550484]
[1766076277687,1.1522,2955.4,2954.6,1.1003]
[1766076277688,1.1522,2955.2,2954.5,1.8612]
[1766076277985,1.1522,2955.0,2954.2,1.1003]
[1766076278190,3.0007,2955.0,2954.3,1.8612]
[1766076278509,1.1522,2954.4,2954.0,0.001]
[1766076278658,1.8485,2954.5,2953.5,2.4052]
[1766076278659,1.1522,2954.2,2953.5,2.4052]
[1766076278854,1.61658023,2954.2,2953.6,0.24052]
[1766076279054,0.46438023,2954.9,2953.7,1.8612]
[1766076279263,0.46438023,2954.9,2954.1,1.8612]
[1766076279478,1.8485,2954.8,2953.9,0.544]
[1766076279677,1.8485,2954.7,2953.9,0.544]
[1766076279877,0.46438023,2954.6,2953.9,0.544]
[1766076280280,1.1522,2954.7,2954.0,1.8612]
[1766076280591,2.31288023,2954.9,2954.3,0.001]
[1766076280789,3.46508023,2954.8,2954.3,0.001]
[1766076280989,1.61658023,2954.6,2953.9,0.544]
[1766076281292,0.46438023,2954.9,2954.0,1.8612]
[1766076281587,1.00838023,2955.0,2954.2,1.8612]
[1766076281789,0.73931083,2954.9,2954.2,1.8612]
[1766076282396,0.46438023,2954.8,2954.2,1.8612]
[1766076283598,3.84870933,2954.8,2954.2,1.8612]
[1766076283772,2.46178023,2954.7,2953.9,2.531]
[1766076283976,3.68818023,2954.7,2953.9,2.531]
[1766076284178,3.68818023,2954.7,2953.9,3.23979491]
[1766076284699,2.46178023,2954.7,2953.9,3.23979491]
[1766076284991,2.46178023,2954.7,2953.3,1.987]
[1766076284992,0.63814929,2954.6,2953.3,1.987]
[1766076285290,0.63814929,2954.6,2953.4,1.987]
[1766076285499,2.46098023,2954.4,2953.4,1.987]
[1766076285705,1.9974,2954.2,2953.4,1.987]
[1766076285904,1.2264,2954.1,2953.4,2.30284]
[1766076287391,0.544,2954.2,2953.5,1.987]
[1766076288295,1.69078023,2954.1,2953.4,0.31584]
[1766076288803,1.69078023,2954.1,2953.4,2.30284]
[1766076289094,0.544,2954.2,2953.5,1.987]
[1766076289259,0.544,2954.2,2953.9,0.001]
[1766076289697,2.46178023,2954.7,2954.0,1.987]
[1766076289876,2.23478023,2954.6,2954.0,1.987]
[1766076290266,2.23478023,2954.6,2953.9,0.001]
[1766076290694,0.544,2954.6,2953.9,0.001]
[1766076290998,1.69078023,2954.5,2953.9,0.001]
[1766076291397,0.544,2954.6,2953.9,0.001]
[1766076291606,0.46438023,2954.2,2953.9,0.001]
[1766076292800,0.46438023,2954.5,2953.9,0.001]
[1766076293096,3.2238,2954.4,2953.9,0.001]
[1766076293399,1.2264,2954.3,2953.9,0.001]
[1766076294601,1.7704,2954.6,2953.9,0.001]
[1766076294991,1.9974,2954.7,2954.0,1.987]
[1766076295391,0.46438023,2954.6,2954.0,1.987]
[1766076295977,0.46438023,2954.6,2954.0,5.3722348]
[1766076296296,1.2264,2954.7,2954.1,1.987]
[1766076296602,1.9974,2955.3,2954.6,1.987]
[1766076296895,2.46178023,2955.3,2954.6,1.987]
[1766076297810,0.46438023,2955.2,2954.2,0.65436348]
[1766076297993,3.2238,2954.5,2953.9,0.31694]
[1766076298310,1.2264,2954.4,2953.9,0.31694]
[1766076298481,3.2238,2954.4,2953.9,0.31694]
[1766076298673,1.9974,2954.1,2953.0,1.987]
[1766076298981,0.32258,2954.4,2953.3,3.38598617]
[1766076299176,1.2264,2954.1,2953.2,5.91612181]
[1766076299375,1.69078023,2954.1,2953.3,3.38599704]
[1766076299903,1.69078023,2954.1,2953.3,5.37299704]
[1766076300685,2.37998023,2954.5,2953.4,1.8258]
[1766076300892,1.69288023,2954.3,2953.4,1.8258]
[1766076301093,1.69288023,2954.3,2953.5,0.6439497]
[1766076301696,1.69288023,2954.3,2953.6,1.8258]
[1766076302006,1.69288023,2954.2,2953.5,0.6439497]
[1766076302205,1.2285,2953.9,2953.5,0.6439497]
[1766076302386,3.1441,2953.9,2953.2,0.543]
[1766076302699,1.69288023,2954.5,2953.6,1.8258]
[1766076302900,5.84519513,2954.6,2953.9,1.2277]
[1766076302901,0.002,2954.6,2953.9,1.2277]
[1766076303103,0.002,2955.5,2954.2,1.8258]
[1766076303104,1.2285,2955.1,2954.2,1.8258]
[1766076303304,0.46438023,2955.0,2954.3,0.543]
[1766076303472,1.2285,2955.1,2954.3,0.543]
[1766076303675,1.2285,2954.8,2954.3,0.543]
[1766076304511,0.46438023,2954.6,2954.0,0.543]
[1766076304889,3.9271328,2955.0,2954.2,3.0535]
[1766076304890,0.46438023,2955.0,2954.2,3.0535]
[1766076305102,1.9156,2955.3,2954.3,3.38487376]
[1766076305428,0.002,2955.5,2954.8,1.8258]
[1766076305622,0.002,2955.5,2955.0,1.8258]
[1766076306796,0.002,2955.5,2955.0,3.38400753]
[1766076306996,0.002,2955.5,2954.9,0.84835]
[1766076307803,0.46438023,2955.3,2954.8,0.543]
[1766076308005,0.46438023,2955.2,2953.8,0.46438023]
[1766076308303,1.2285,2954.9,2954.3,3.38488385]
[1766076308614,0.002,2955.5,2954.8,1.8258]
[1766076308911,0.002,2955.5,2954.9,1.8258]
[1766076309114,0.002,2955.5,2954.8,1.7707]
[1766076309115,0.002,2955.5,2955.0,1.2277]
[1766076309298,0.002,2955.6,2955.2,1.8258]
[1766076309698,0.002,2955.6,2955.2,2.67415]
[1766076310517,3.1453,2955.6,2955.2,0.543]
[1766076310722,0.0012,2955.6,2955.2,0.543]
[1766076312784,0.002,2955.7,2955.3,1.8864]
[1766076313187,1.1578,2956.2,2955.4,1.8864]
[1766076313420,1.1578,2956.2,2955.5,1.8864]
[1766076313722,1.1578,2956.2,2955.6,0.30816]
[1766076314597,3.0658,2956.0,2955.5,0.543]
[1766076314793,3.38474896,2956.2,2955.0,1.8864]
[1766076314794,1.91,2955.8,2955.0,1.8864]
[1766076315101,1.1558,2955.6,2955.0,0.543]
[1766076315615,3.0658,2955.6,2955.0,0.543]
[1766076315816,3.0658,2955.6,2954.8,1.8864]
[1766076316017,3.0658,2955.6,2954.9,0.543]
[1766076316709,0.46438023,2955.8,2955.0,3.0816]
[1766076316912,3.84759219,2955.8,2955.0,3.0816]
[1766076317118,1.62018023,2955.8,2955.0,3.0816]
[1766076317616,0.46438023,2955.7,2955.0,3.0816]
[1766076317823,1.1558,2955.5,2954.9,0.543]
[1766076318020,1.1558,2955.3,2954.6,1.8864]
[1766076318316,0.38475674,2955.6,2954.6,0.543]
[1766076318515,0.46438023,2956.0,2954.9,1.8864]
[1766076318720,1.1558,2955.7,2954.9,3.0816]
[1766076319921,1.1558,2955.7,2955.0,0.543]
[1766076320522,1.91,2955.9,2955.1,1.8864]
[1766076320733,1.1558,2956.0,2955.0,0.543]
[1766076320932,1.62018023,2955.7,2954.7,1.8864]
[1766076321233,3.0658,2955.6,2954.6,1.8864]
[1766076321397,0.46438023,2955.5,2954.7,3.6246]
[1766076321598,1.1558,2955.5,2954.7,3.6246]
[1766076322019,1.1558,2955.3,2954.7,0.543]
[1766076322203,1.62218023,2955.9,2955.1,1.8864]
[1766076322408,0.002,2955.9,2955.2,1.22903865]
[1766076322629,0.002,2955.9,2955.3,1.8864]
[1766076323229,1.1558,2955.6,2955.1,0.85116]
[1766076323416,1.1558,2955.6,2955.1,0.543]
[1766076323622,0.002,2955.9,2955.1,0.543]
[1766076323623,0.46438023,2955.8,2955.1,0.543]
[1766076323930,0.002,2955.9,2955.2,1.8864]
[1766076324228,1.1558,2955.5,2955.1,0.543]
[1766076324792,0.002,2955.9,2955.1,0.543]
[1766076324997,1.62018023,2955.8,2955.1,2.4294]
[1766076325197,1.62018023,2955.8,2955.2,0.36246]
[1766076325444,1.912,2955.9,2955.2,0.36246]
[1766076325445,1.1558,2955.6,2955.2,0.36246]
[1766076325608,1.1558,2955.6,2955.1,0.543]
[1766076325999,1.62218023,2955.9,2955.1,0.543]
[1766076326303,1.1558,2955.7,2955.1,0.543]
[1766076327098,0.46438023,2955.6,2955.1,0.543]
[1766076327299,1.1558,2955.4,2954.9,0.543]
[1766076327499,1.91,2955.1,2954.0,1.8864]
[1766076327712,1.1558,2954.4,2953.5,1.8864]
[1766076327928,1.1558,2954.4,2953.6,3.38568821]
[1766076328134,1.1558,2954.4,2953.6,1.8864]
[1766076328731,1.1558,2954.4,2953.6,1.1952]
[1766076328932,0.46438023,2954.5,2953.7,3.53969878]
[1766076329301,1.62018023,2954.5,2953.7,3.53969878]
[1766076329505,3.0658,2954.3,2953.5,1.8864]
[1766076329932,2.37438023,2954.6,2953.6,1.8864]
[1766076330133,3.53018023,2954.6,2953.7,1.8864]
[1766076330638,3.53018023,2954.6,2953.8,1.8864]
[1766076331125,1.62018023,2955.0,2954.1,1.8864]
[1766076331436,1.62018023,2955.0,2954.1,2.24886]
[1766076331741,1.62018023,2955.0,2954.1,0.36246]
[1766076331911,1.62018023,2955.0,2954.0,3.385189]
[1766076332239,1.62018023,2955.0,2954.1,3.0816]
[1766076332734,1.62018023,2955.0,2954.2,1.8864]
[1766076335008,1.61938023,2955.0,2954.2,1.8864]
[1766076335204,1.61938023,2955.0,2954.3,1.8864]
[1766076335446,1.61938023,2955.0,2954.4,0.64665724]
[1766076335813,0.543,2955.2,2954.4,2.53305724]
[1766076336122,2.21658,2955.4,2954.4,2.53305724]
[1766076336326,2.453,2955.3,2954.4,2.53305724]
[1766076336621,1.91,2955.3,2954.4,2.53305724]
[1766076336821,2.37438023,2955.3,2954.3,0.543]
[1766076337149,1.91,2954.9,2954.1,0.001]
[1766076337378,1.1558,2954.5,2954.1,0.001]
[1766076337717,1.1558,2954.5,2953.5,3.3857382]
[1766076337933,0.46438023,2954.1,2953.4,0.001]
[1766076338241,1.1558,2953.9,2953.4,0.001]
[1766076338428,1.1558,2954.2,2953.4,1.8874]
[1766076338620,1.1558,2954.1,2953.5,0.30826]
[1766076339239,0.543,2954.2,2953.4,0.001]
[1766076339448,0.543,2954.2,2953.1,0.544]
[1766076339449,1.1558,2953.7,2953.1,0.544]
[1766076339617,1.91,2953.8,2953.1,0.544]
[1766076339805,1.62018023,2954.0,2953.1,2.4304]
[1766076340005,1.62018023,2954.0,2953.1,1.8874]
[1766076340250,3.0658,2953.6,2953.1,0.001]
[1766076341350,3.0658,2953.5,2953.1,0.001]
[1766076341551,3.0658,2953.5,2953.0,0.001]
[1766076341552,3.0658,2953.4,2953.0,0.001]
[1766076341753,0.09414929,2954.2,2953.0,0.001]
[1766076341754,1.62018023,2954.2,2953.2,1.8864]
[1766076341943,3.53018023,2954.2,2953.3,1.8864]
[1766076342274,1.91,2953.7,2953.1,0.543]
[1766076342476,1.91,2953.7,2953.0,0.001]
[1766076342477,1.1558,2953.6,2953.0,0.001]
[1766076342637,4.14228023,2954.0,2953.0,2.0352]
[1766076342967,3.59928023,2954.0,2953.2,2.0342]
[1766076344266,1.1927,2953.7,2953.0,0.001]
[1766076344468,1.1927,2953.6,2953.0,0.37681]
[1766076344672,1.1927,2953.5,2953.0,0.37681]
[1766076344920,0.46438023,2953.7,2953.0,0.001]
[1766076345175,0.46438023,2953.7,2952.5,0.001]
[1766076345176,0.46438023,2953.6,2952.5,0.001]
[1766076345338,0.46438023,2953.4,2952.2,0.544]
[1766076345536,0.543,2953.3,2952.2,0.544]
[1766076345754,1.9422,2953.0,2952.2,0.544]
[1766076345972,6.7704884,2954.0,2952.2,0.544]
[1766076346144,2.20008023,2953.7,2952.8,2.0342]
[1766076346335,1.65708023,2953.5,2952.7,3.2131]
[1766076346535,1.65708023,2953.5,2952.8,2.0342]
[1766076347869,0.543,2953.7,2952.6,0.543]
[1766076348074,1.1927,2953.6,2952.6,0.543]
[1766076348368,1.65708023,2953.5,2952.6,4.52626388]
[1766076348561,1.65708023,2953.5,2952.7,1.1789]
[1766076348737,1.65708023,2953.5,2952.8,2.0342]
[1766076349568,0.46438023,2953.4,2952.8,2.0342]
[1766076349739,1.65708023,2953.4,2952.6,4.52626388]
[1766076349945,1.65708023,2953.4,2952.7,0.65604639]
[1766076350267,1.1927,2953.4,2952.7,0.65604639]
[1766076350476,1.65708023,2953.3,2952.8,0.001]
[1766076350843,1.65708023,2953.5,2952.8,0.001]
[1766076351041,1.65708023,2953.3,2952.8,0.001]
[1766076351841,0.69150768,2954.1,2952.8,0.001]
[1766076352171,1.65708023,2954.1,2953.3,2.0342]
[1766076352566,1.00738023,2954.2,2953.3,2.0342]
[1766076352891,4.39239455,2954.2,2953.1,0.543]
[1766076353096,3.1349,2953.8,2953.1,0.543]
[1766076353324,1.9422,2953.7,2953.1,0.543]
[1766076353599,0.90292802,2953.8,2952.8,0.001]
[1766076353808,0.46438023,2953.6,2952.8,0.001]
[1766076354294,1.1927,2953.6,2952.9,2.0342]
[1766076354469,0.46438023,2954.3,2952.9,2.0342]
[1766076354665,0.46438023,2954.0,2953.1,1.1789]
[1766076354890,0.82430825,2954.0,2953.2,2.0342]
[1766076356000,0.46438023,2954.0,2953.2,3.2131]
[1766076356167,0.46438023,2954.0,2953.3,5.42024273]
[1766076356869,0.46438023,2954.0,2953.3,2.0342]
[1766076357182,1.1927,2953.6,2952.6,5.42103578]
[1766076357370,3.1349,2953.6,2953.0,0.543]
[1766076357570,0.543,2953.9,2953.1,2.0342]
[1766076357788,0.543,2953.9,2953.3,2.0342]
[1766076357981,1.65708023,2954.1,2953.3,2.0342]
[1766076358178,1.65708023,2954.1,2953.4,2.0342]
[1766076358899,3.1349,2954.1,2953.4,2.0342]
[1766076359801,3.1341,2954.1,2953.4,2.0342]
[1766076360009,1.9422,2954.1,2953.3,0.001]
[1766076360310,3.38666877,2954.5,2953.5,2.0342]
[1766076360311,0.002,2954.5,2953.5,2.0342]
[1766076360484,1.9422,2955.6,2953.7,2.439704]
[1766076360808,1.9422,2955.6,2954.4,1.1567]
[1766076361012,0.002,2955.7,2955.0,1.1567]
[1766076361216,0.002,2956.3,2955.4,1.9314]
[1766076361385,0.002,2956.3,2955.5,0.30881]
[1766076361712,0.002,2956.3,2955.5,0.85181]
[1766076362213,0.002,2956.3,2955.5,2.78321]
[1766076362824,0.002,2956.3,2955.7,1.1567]
[1766076363001,0.002,2956.3,2955.8,1.9314]
[1766076363308,0.002,2956.3,2955.6,1.9314]
[1766076363511,0.002,2956.3,2955.7,1.9314]
[1766076363812,0.002,2956.3,2955.6,0.73235029]
[1766076364017,0.002,2956.3,2955.5,0.85181]
[1766076364316,0.002,2956.3,2955.8,1.9314]
[1766076365198,1.66948023,2956.3,2955.5,0.85181]
[1766076365402,0.002,2956.3,2955.6,1.9314]
[1766076366207,0.002,2956.8,2955.8,3.38317883]
[1766076366409,0.002,2956.8,2956.0,3.0881]
[1766076366917,1.66748023,2956.6,2955.9,0.543]
[1766076367116,0.002,2956.3,2955.9,0.543]
[1766076367527,1.2051,2956.3,2955.9,0.543]
[1766076367738,1.2051,2956.3,2955.4,1.1567]
[1766076368039,1.2031,2956.2,2955.4,1.1567]
[1766076368210,1.8283,2956.1,2955.3,0.543]
[1766076368534,2.1885911,2956.0,2955.1,3.0881]
[1766076369436,2.1885911,2956.0,2955.1,1.1567]
[1766076369642,2.1885911,2956.0,2955.2,1.9314]
[1766076370002,2.20948023,2955.9,2955.2,1.9314]
[1766076370538,0.002,2956.3,2955.3,0.03383751]
[1766076370745,0.002,2956.3,2955.5,1.9314]
[1766076370944,0.542,2956.6,2955.9,3.0881]
[1766076371312,1.2051,2956.8,2956.0,0.03382949]
[1766076371519,1.2051,2956.8,2956.0,1.9314]
[1766076371714,0.002,2956.8,2956.2,1.1567]
[1766076371915,0.002,2956.8,2956.0,1.9314]
[1766076372133,0.17691,2956.8,2956.0,1.9314]
[1766076372648,2.9843,2956.7,2955.8,0.542]
[1766076372945,0.17691,2956.8,2956.0,1.0943]
[1766076373107,0.542,2956.7,2956.2,1.0943]
[1766076373306,0.002,2956.8,2956.3,1.9452]
[1766076375034,0.002,2956.8,2956.0,1.9452]
[1766076376424,0.002,2956.8,2955.6,0.2878904]
[1766076376425,0.002,2956.8,2955.3,1.0943]
[1766076376648,0.46438023,2956.3,2955.2,1.9452]
[1766076376861,2.9843,2955.9,2955.2,0.19452]
[1766076377022,2.9843,2955.9,2954.8,3.9262483]
[1766076377023,0.542,2955.8,2955.1,1.0943]
[1766076377224,0.542,2955.8,2955.2,1.9452]
[1766076377453,1.62638023,2956.4,2955.5,1.9452]
[1766076377652,1.8223,2956.5,2955.2,0.542]
[1766076377653,1.162,2956.2,2955.2,0.542]
[1766076377852,1.62638023,2956.2,2955.2,3.92585653]
[1766076378056,1.62638023,2956.2,2955.5,1.9452]
[1766076378360,2.9843,2956.1,2955.3,0.73098162]
[1766076378555,0.542,2956.0,2955.2,9.25492838]
[1766076378855,0.542,2956.0,2955.4,1.9452]
[1766076379358,0.542,2956.1,2955.2,0.542]
[1766076379525,1.162,2955.9,2955.2,0.542]
[1766076379725,2.9843,2955.9,2955.2,0.542]
[1766076380152,1.8223,2955.7,2954.6,1.9452]
[1766076380351,1.162,2955.6,2954.7,5.32963753]
[1766076380523,1.8223,2955.5,2954.7,1.9452]
[1766076380723,1.162,2955.4,2954.7,1.9452]
[1766076381039,2.16838023,2955.7,2954.8,1.9452]
[1766076381345,2.16838023,2955.7,2954.9,0.30395]
[1766076381935,1.62638023,2955.7,2954.9,0.30395]
[1766076382125,0.542,2955.6,2955.0,3.0395]
[1766076382728,0.492,2955.6,2955.0,1.9452]
[1766076382939,0.492,2955.6,2954.9,0.30395]
[1766076383137,1.654,2955.6,2954.9,3.68810968]
[1766076383424,0.542,2955.7,2955.1,1.0943]
[1766076383628,0.542,2955.7,2955.2,3.0395]
[1766076384025,0.542,2956.0,2955.4,1.9452]
[1766076384253,0.002,2956.3,2955.7,1.9452]
[1766076384565,0.0012,2956.3,2955.8,3.23402]
[1766076384729,0.0012,2956.3,2955.8,2.13972]
[1766076385232,2.16838023,2956.7,2955.8,3.23402]
[1766076385655,0.46438023,2956.6,2955.8,3.23402]
[1766076385851,0.46438023,2956.6,2955.2,1.9452]
[1766076385852,1.8223,2956.4,2955.2,1.9452]
[1766076386025,1.8223,2956.2,2955.4,0.542]
[1766076386224,1.162,2956.0,2955.2,1.9452]
[1766076386527,8.72032839,2956.6,2955.4,3.38355926]
[1766076386528,0.542,2956.4,2955.4,3.38355926]
[1766076386736,0.542,2956.4,2955.5,3.38351921]
[1766076386957,3.44868023,2956.6,2955.7,1.9452]
[1766076387142,0.542,2956.4,2955.7,1.9452]
[1766076387858,0.542,2956.4,2955.7,3.0395]
[1766076388227,0.542,2956.4,2955.8,1.0943]
[1766076388461,0.002,2956.8,2955.9,1.9452]
[1766076388634,5.01042456,2956.8,2956.0,2.24915]
[1766076388838,6.83272456,2956.8,2956.0,2.24915]
[1766076389975,1.8223,2956.7,2956.0,0.30395]
[1766076390179,2.9843,2956.7,2955.9,1.9452]
[1766076390361,3.84843139,2956.8,2955.9,1.9452]
[1766076390549,3.84843139,2956.8,2955.9,3.0395]
[1766076390745,2.9843,2956.7,2955.9,1.9452]
[1766076390958,1.8223,2956.7,2955.9,0.19452]
[1766076391166,1.162,2956.6,2955.6,1.0943]
[1766076391385,1.162,2956.6,2955.7,1.9452]
[1766076391702,0.002,2956.8,2956.3,1.9452]
[1766076391991,0.002,2956.8,2956.3,3.0395]
[1766076392146,0.002,2956.8,2956.4,0.64222049]
[1766076392577,0.002,2956.8,2956.3,3.0395]
[1766076393792,0.002,2956.8,2956.3,1.9452]
[1766076395079,0.002,2956.8,2956.3,3.0395]
[1766076396058,0.002,2957.1,2956.6,1.9452]
[1766076396688,0.002,2957.1,2956.2,0.405504]
[1766076396889,0.002,2957.1,2956.4,1.0943]
[1766076397187,0.002,2957.1,2956.5,1.9452]
[1766076397382,0.002,2957.1,2956.7,1.9452]
[1766076398206,0.002,2957.4,2957.1,1.9452]
[1766076398512,1.162,2957.8,2957.2,0.30395]
[1766076398712,1.62638023,2957.7,2957.0,1.0943]
[1766076399012,3.92467538,2958.0,2957.0,1.0943]
[1766076399013,0.002,2958.0,2957.4,1.0943]
[1766076399187,0.46438023,2957.9,2957.1,3.0395]
[1766076399715,2.9863,2958.0,2957.2,3.0395]
[1766076399923,0.46438023,2957.9,2957.2,3.0395]
[1766076400121,2.9863,2958.0,2957.3,0.30395]
[1766076400413,2.9843,2957.9,2957.3,0.30395]
[1766076400581,0.46438023,2957.8,2957.1,3.0395]
[1766076401392,0.46438023,2957.8,2957.1,1.0943]
[1766076401688,1.162,2957.9,2957.2,1.9452]
[1766076402785,1.62638023,2957.9,2957.2,1.9452]
[1766076402984,1.1234,2957.8,2957.2,1.9452]
[1766076403314,1.1234,2957.8,2957.3,0.30395]
[1766076405825,1.1254,2957.8,2957.3,0.30395]